fUSD/lending_fUSD_20250201
["ID","MTS","AMOUNT","RATE_DAILY","PERIOD"]
[351184509,1738399873124,-1529.22,0.00017945,2]
[351184510,1738399873133,-500.0,0.00017945,2]
[351184511,1738399873143,-917.48,0.00017945,2]
[351184512,1738399873152,-500.0,0.00017945,2]
[351184513,1738399873162,-1471.11,0.00017945,2]
[351184514,1738399873171,-1512.35,0.00017945,2]
[351184515,1738399873180,-818.52,0.00017945,2]
[351184516,1738399873190,-2864.2,0.00017945,2]
[351184517,1738399873199,-1217.27,0.00017945,2]
[351184518,1738399873208,-961.91,0.00017945,2]
[351184519,1738399873217,-1419.87,0.00017945,2]
[351184520,1738399873226,-500.0,0.00017945,2]
[351184521,1738399873236,-580.81,0.00017945,2]
[351184522,1738399873245,-296.49121942,0.00017945,2]
[351184523,1738399873255,-902.94,0.00017945,2]
[351184524,1738399873348,-1453.2,0.00017945,2]
[351184525,1738399873366,-151.0,0.00017945,2]
[351184526,1738399873375,-151.0,0.00017945,2]
[351184527,1738399873385,-798.92,0.00017945,2]
[351184528,1738399873395,-2365.3,0.00017945,2]
[351184529,1738399873404,-779.0,0.00017945,2]
[351184530,1738399873413,-633.18,0.00017945,2]
[351184531,1738399873423,-507.66,0.00017945,2]
[351184532,1738399873432,-1043.13,0.00017945,2]
[351184533,1738399873442,-1053.381215,0.00017945,2]
[351184534,1738399873451,-500.0,0.00017945,2]
[351184535,1738399873461,-1567.89,0.00017945,2]
[351184536,1738399873471,-910.38,0.00017945,2]
[351184537,1738399873480,-1053.381215,0.00017945,2]
[351184538,1738399873489,-500.0,0.00017945,2]
[351184539,1738399873499,-1273.65,0.00017945,2]
[351184540,1738399873508,-879.55,0.00017945,2]
[351184541,1738399873517,-601.78,0.00017945,2]
[351184542,1738399873528,-1015.54,0.00017945,2]
[351184543,1738399873538,-2958.79,0.00017945,2]
[351184544,1738399873547,-500.0,0.00017945,2]
[351184545,1738399873557,-761.06,0.00017945,2]
[351184546,1738399873566,-572.04,0.00017945,2]
[351184547,1738399873575,-500.0,0.00017945,2]
[351184548,1738399873584,-621.1,0.00017945,2]
[351184549,1738399873595,-3925.91,0.00017945,2]
[351184550,1738399873604,-382.10591967,0.00017945,2]
[351184551,1738399873614,-150.59,0.00017945,2]
[351184552,1738399873623,-212.0,0.0001795,2]
[351184553,1738399873634,-205.0,0.0001795,2]
[351184554,1738399873644,-206.0,0.0001795,2]
[351184555,1738399873653,-1000.0,0.00017953,2]
[351184556,1738399873663,-1405.87757458,0.00017969,2]
[351184557,1738399873672,-1160.0,0.00017969,2]
[351184558,1738399873682,-28025.0,0.00017973,2]
[351184559,1738399873695,-204.786436,0.00017973,2]
[351184560,1738399873705,-204.786436,0.00017973,2]
[351184561,1738399873715,-300.36351,0.00017973,2]
[351184562,1738399873726,-151.0,0.00017973,2]
[351184563,1738399873736,-151.0,0.00017973,2]
[351184564,1738399873748,-300.36351,0.00017973,2]
[351184565,1738399873758,-151.0,0.00017973,2]
[351184566,1738399873768,-151.0,0.00017973,2]
[351184567,1738399873777,-172.15936,0.00017973,2]
[351184568,1738399873787,-270.645188,0.00017973,2]
[351184569,1738399873797,-270.645188,0.00017973,2]
[351184570,1738399873808,-202.78840816,0.0001799,2]
[351184571,1738399873819,-1160.0,0.00017997,2]
[351184572,1738399873828,-168.0,0.00018,2]
[351184573,1738399873838,-407354.2748,0.00018,2]
[351184574,1738399873847,-858.07,0.00018,2]
[351184575,1738399873856,-4141.99194921,0.00018,2]
[351184576,1738399873865,-1000.0,0.00018,2]
[351184577,1738399873874,-214.8075,0.00018,2]
[351184578,1738399873883,-214.8075,0.00018,2]
[351184579,1738399873895,-151.0,0.00018,2]
[351184580,1738399873905,-151.0,0.00018,2]
[351184581,1738399873914,-151.0,0.00018,2]
[351184582,1738399873923,-167.51475,0.00018,2]
[351184583,1738399873932,-151.0,0.00018,2]
[351184584,1738399873941,-211.368202,0.00018,2]
[351184585,1738399873950,-211.368202,0.00018,2]
[351184586,1738399873959,-204.527398,0.00018,2]
[351184587,1738399873968,-151.0,0.00018,2]
[351184588,1738399873977,-153.968523,0.00018,2]
[351184589,1738399873986,-279.238114,0.00018,2]
[351184590,1738399873995,-279.238114,0.00018,2]
[351184591,1738399874004,-160.398153,0.00018,2]
[351184592,1738399874013,-160.398153,0.00018,2]
[351184593,1738399874023,-151.0,0.00018,2]
[351184594,1738399874032,-151.0,0.00018,2]
[351184595,1738399874041,-151.0,0.00018,2]
[351184596,1738399874058,-151.0,0.00018,2]
[351184597,1738399874073,-151.0,0.00018,2]
[351184598,1738399874093,-151.0,0.00018,2]
[351184599,1738399874110,-151.0,0.00018,2]
[351184600,1738399874124,-151.0,0.00018,2]
[351184601,1738399874141,-151.0,0.00018,2]
[351184602,1738399874159,-151.0,0.00018,2]
[351184603,1738399874178,-296.0,0.00018,2]
[351184604,1738399874195,-436.253061,0.00018,2]
[351184605,1738399874212,-436.253061,0.00018,2]
[351184606,1738399874230,-151.0,0.00018,2]
[351184607,1738399874243,-832.737638,0.00018,2]
[351184608,1738399874262,-151.0,0.00018,2]
[351184609,1738399874277,-832.737638,0.00018,2]
[351184610,1738399874294,-151.0,0.00018,2]
[351184611,1738399874308,-151.0,0.00018,2]
[351184612,1738399874323,-209.666355,0.00018,2]
[351184613,1738399874339,-508.051989,0.00018,2]
[351184614,1738399874354,-151.0,0.00018,2]
[351184615,1738399874369,-151.0,0.00018,2]
[351184616,1738399874383,-270.378789,0.00018,2]
[351184617,1738399874398,-151.0,0.00018,2]
[351184618,1738399874413,-199.227395,0.00018,2]
[351184619,1738399874428,-151.0,0.00018,2]
[351184620,1738399874442,-195.440383,0.00018,2]
[351184621,1738399874457,-246.982218,0.00018,2]
[351184622,1738399874472,-195.440383,0.00018,2]
[351184623,1738399874488,-151.0,0.00018,2]
[351184624,1738399874503,-227.062581,0.00018,2]
[351184625,1738399874518,-151.0,0.00018,2]
[351184626,1738399874534,-227.062581,0.00018,2]
[351184627,1738399874548,-272.627502,0.00018,2]
[351184628,1738399874563,-10000.0,0.00018,2]
[351184629,1738399874578,-272.627502,0.00018,2]
[351184630,1738399874594,-151.0,0.00018,2]
[351184631,1738399874609,-500.0,0.00018018,2]
[351184632,1738399874625,-700.0,0.00018018,2]
[351184633,1738399874640,-25205.10940153,0.0001802,5]
[351184634,1738399874655,-1160.0,0.00018024,2]
[351184635,1738399874670,-382.10591967,0.00018027,2]
[351184636,1738399874685,-786.77543715,0.00018035,2]
[351184637,1738399874702,-1160.0,0.00018052,2]
[351184638,1738399874716,-1405.87757458,0.00018072,2]
[351184639,1738399874732,-1160.0,0.00018079,2]
[351184640,1738399874746,-1696.26,0.00018079,2]
[351184641,1738399874761,-2076.17,0.00018079,2]
[351184642,1738399874777,-500.0,0.00018079,2]
[351184643,1738399874791,-627.0,0.00018079,2]
[351184644,1738399874806,-1370.4,0.00018079,2]
[351184645,1738399874820,-2146.42,0.00018079,2]
[351184646,1738399874836,-1850.47,0.00018079,2]
[351184647,1738399874852,-1660.38,0.00018079,2]
[351184648,1738399874868,-750.93,0.00018079,2]
[351184649,1738399874883,-574.44,0.00018079,2]
[351184650,1738399874899,-636.54774733,0.00018079,2]
[351184651,1738399875403,-500.0,0.00016438,2]
[351184652,1738399875412,-150.0,0.00016575,2]
[351184653,1738399875422,-500.0,0.00016986,2]
[351184654,1738399875431,-176.58225267,0.00018079,2]
[351184655,1738399875440,-875.01,0.00018079,2]
[351184656,1738399875450,-691.33,0.00018079,2]
[351184657,1738399875459,-3841.69,0.00018079,2]
[351184658,1738399875468,-151.246884,0.0001808,2]
[351184659,1738399875478,-151.0,0.0001808,2]
[351184660,1738399875487,-500.0,0.0001808,2]
[351184661,1738399875496,-597.53,0.0001808,2]
[351184662,1738399875505,-602.98,0.0001808,2]
[351184663,1738399875515,-500.0,0.0001808,2]
[351184664,1738399875524,-500.0,0.0001808,2]
[351184665,1738399875533,-500.0,0.0001808,2]
[351184666,1738399875542,-500.0,0.0001808,2]
[351184667,1738399875551,-643.59,0.0001808,2]
[351184668,1738399875560,-582.1,0.0001808,2]
[351184669,1738399875570,-678.42,0.0001808,2]
[351184670,1738399875579,-500.0,0.0001808,2]
[351184671,1738399875588,-500.0,0.0001808,2]
[351184672,1738399875597,-500.0,0.0001808,2]
[351184673,1738399875608,-500.0,0.0001808,2]
[351184674,1738399875617,-500.0,0.0001808,2]
[351184675,1738399875627,-662.8,0.0001808,2]
[351184676,1738399875636,-500.0,0.0001808,2]
[351184677,1738399875646,-525.12,0.0001808,2]
[351184678,1738399875655,-500.0,0.0001808,2]
[351184679,1738399875664,-548.04,0.0001808,2]
[351184680,1738399875674,-618.08,0.0001808,2]
[351184681,1738399875684,-602.13,0.0001808,2]
[351184682,1738399875696,-535.9,0.0001808,2]
[351184683,1738399875705,-553.2,0.0001808,2]
[351184684,1738399875714,-500.0,0.0001808,2]
[351184685,1738399875723,-500.0,0.0001808,2]
[351184686,1738399875732,-817.74,0.0001808,2]
[351184687,1738399875743,-631.93,0.0001808,2]
[351184688,1738399875752,-605.11,0.0001808,2]
[351184689,1738399875762,-963.48,0.0001808,2]
[351184690,1738399875772,-511.13,0.0001808,2]
[351184691,1738399875782,-942.08,0.0001808,2]
[351184692,1738399875792,-822.79,0.0001808,2]
[351184693,1738399875801,-823.23,0.0001808,2]
[351184694,1738399875810,-1026.47,0.0001808,2]
[351184695,1738399875820,-2387.81,0.0001808,2]
[351184696,1738399875831,-2708.74,0.0001808,2]
[351184697,1738399875842,-500.0,0.0001808,2]
[351184698,1738399875852,-1668.57,0.0001808,2]
[351184699,1738399875861,-500.0,0.0001808,2]
[351184700,1738399875871,-2362.46,0.0001808,2]
[351184701,1738399875880,-683.25,0.0001808,2]
[351184702,1738399875890,-2132.08,0.0001808,2]
[351184703,1738399875899,-743.46,0.0001808,2]
[351184704,1738399875908,-739.76,0.0001808,2]
[351184705,1738399875917,-1903.33,0.0001808,2]
[351184706,1738399875926,-500.0,0.0001808,2]
[351184707,1738399875936,-1879.52,0.0001808,2]
[351184708,1738399875945,-2018.52,0.0001808,2]
[351184709,1738399875955,-791.88,0.0001808,2]
[351184710,1738399875965,-2131.88,0.0001808,2]
[351184711,1738399875974,-500.0,0.0001808,2]
[351184712,1738399875983,-636.58,0.0001808,2]
[351184713,1738399875992,-1092.53,0.0001808,2]
[351184714,1738399876001,-753.21,0.0001808,2]
[351184715,1738399876011,-738.27,0.0001808,2]
[351184716,1738399876020,-500.0,0.0001808,2]
[351184717,1738399876030,-538.96,0.0001808,2]
[351184718,1738399876040,-718.1,0.0001808,2]
[351184719,1738399876050,-569.97,0.0001808,2]
[351184720,1738399876059,-500.0,0.0001808,2]
[351184721,1738399876069,-1038.0,0.0001808,2]
[351184722,1738399876079,-500.0,0.0001808,2]
[351184723,1738399876091,-500.0,0.0001808,2]
[351184724,1738399876101,-500.0,0.0001808,2]
[351184725,1738399876111,-593.68,0.0001808,2]
[351184726,1738399876120,-953.41,0.0001808,2]
[351184727,1738399876130,-500.0,0.0001808,2]
[351184728,1738399876139,-500.0,0.0001808,2]
[351184729,1738399876149,-805.58,0.0001808,2]
[351184730,1738399876159,-604.32,0.0001808,2]
[351184731,1738399876169,-837.34,0.0001808,2]
[351184732,1738399876178,-1283.13,0.0001808,2]
[351184733,1738399876187,-1335.88,0.0001808,2]
[351184734,1738399876196,-2610.26,0.0001808,2]
[351184735,1738399876206,-500.0,0.0001808,2]
[351184736,1738399876215,-4833.97,0.0001808,2]
[351184737,1738399876224,-1465.33,0.00018081,2]
[351184738,1738399876234,-2282.45,0.00018081,2]
[351184739,1738399876243,-904.16,0.00018081,2]
[351184740,1738399876253,-1577.48,0.00018081,2]
[351184741,1738399876262,-498.18466572,0.00018081,2]
[351184742,1738399876271,-775.84,0.00018081,2]
[351184743,1738399876280,-1352.4,0.00018081,2]
[351184744,1738399876290,-1546.09,0.00018081,2]
[351184745,1738399876299,-1000.0,0.00018081,2]
[351184746,1738399876309,-1383.7,0.00018081,2]
[351184747,1738399876318,-502.04,0.00018081,2]
[351184748,1738399876328,-2390.63,0.00018081,2]
[351184749,1738399876337,-635.47,0.00018081,2]
[351184750,1738399876346,-500.0,0.00018082,2]
[351184751,1738399876355,-500.0,0.00018082,2]
[351184752,1738399876365,-500.0,0.00018082,2]
[351184753,1738399876374,-500.0,0.00018082,2]
[351184754,1738399876384,-500.0,0.00018082,2]
[351184755,1738399876393,-528.19,0.00018082,2]
[351184756,1738399876402,-267.16682054,0.00018082,2]
[351184757,1738399876411,-500.0,0.00018082,2]
[351184758,1738399876420,-347.41,0.00018082,2]
[351184759,1738399876429,-525.68,0.00018082,2]
[351184760,1738399876438,-500.0,0.00018082,2]
[351184761,1738399876447,-761.75,0.00018082,2]
[351184762,1738399876457,-620.94,0.00018082,2]
[351184763,1738399876467,-500.0,0.00018082,2]
[351184764,1738399876477,-688.17,0.00018082,2]
[351184765,1738399876486,-520.63,0.00018082,2]
[351184766,1738399876495,-500.0,0.00018082,2]
[351184767,1738399876504,-546.29,0.00018082,2]
[351184768,1738399876514,-500.0,0.00018082,2]
[351184769,1738399876523,-500.0,0.00018082,2]
[351184770,1738399876533,-706.17,0.00018082,2]
[351184771,1738399876543,-500.0,0.00018082,2]
[351184772,1738399876552,-500.0,0.00018082,2]
[351184773,1738399876561,-500.0,0.00018082,2]
[351184774,1738399876570,-825.63,0.00018082,2]
[351184775,1738399876580,-598.4,0.00018082,2]
[351184776,1738399876590,-726.45,0.00018082,2]
[351184777,1738399876599,-200.0,0.00018082,2]
[351184778,1738399876609,-1157.25,0.00018082,2]
[351184779,1738399876618,-500.0,0.00018082,2]
[351184780,1738399876627,-450.302109,0.00018082,2]
[351184781,1738399876636,-227.5057969,0.00018082,2]
[351184782,1738399876646,-623.01,0.00018082,2]
[351184783,1738399876655,-153.537193,0.00018082,2]
[351184784,1738399876664,-500.0,0.00018082,2]
[351184785,1738399876674,-1237.86,0.00018082,2]
[351184786,1738399876684,-794.39,0.00018082,2]
[351184787,1738399876695,-900.16,0.00018082,2]
[351184788,1738399876705,-1144.92,0.00018082,2]
[351184789,1738399876714,-445.813525,0.00018082,2]
[351184790,1738399876723,-500.0,0.00018082,2]
[351184791,1738399876733,-1330.79,0.00018082,2]
[351184792,1738399876742,-873.52,0.00018082,2]
[351184793,1738399876751,-1097.36,0.00018082,2]
[351184794,1738399876761,-911.22,0.00018082,2]
[351184795,1738399876770,-796.08,0.00018082,2]
[351184796,1738399876780,-500.0,0.00018082,2]
[351184797,1738399876790,-2074.04,0.00018082,2]
[351184798,1738399876799,-667.67,0.00018082,2]
[351184799,1738399876808,-1244.07,0.00018082,2]
[351184800,1738399876817,-2707.78,0.00018082,2]
[351184801,1738399876826,-796.81,0.00018082,2]
[351184802,1738399876836,-1529.22,0.00018082,2]
[351184803,1738399876848,-500.0,0.00018082,2]
[351184804,1738399876858,-917.48,0.00018082,2]
[351184805,1738399876867,-500.0,0.00018082,2]
[351184806,1738399876878,-1471.11,0.00018082,2]
[351184807,1738399876888,-1512.35,0.00018082,2]
[351184808,1738399876899,-818.52,0.00018082,2]
[351184809,1738399876908,-2864.2,0.00018082,2]
[351184810,1738399876918,-1217.27,0.00018082,2]
[351184811,1738399876928,-961.91,0.00018082,2]
[351184812,1738399876937,-1419.87,0.00018082,2]
[351184813,1738399876947,-500.0,0.00018082,2]
[351184814,1738399876956,-580.81,0.00018082,2]
[351184815,1738399877086,-902.94,0.00018082,2]
[351184816,1738399877101,-1453.2,0.00018082,2]
[351184817,1738399877111,-798.92,0.00018082,2]
[351184818,1738399877120,-2365.3,0.00018082,2]
[351184819,1738399877130,-779.0,0.00018082,2]
[351184820,1738399877139,-633.18,0.00018082,2]
[351184821,1738399877149,-507.66,0.00018082,2]
[351184822,1738399877158,-1043.13,0.00018082,2]
[351184823,1738399877168,-500.0,0.00018082,2]
[351184824,1738399877177,-1567.89,0.00018082,2]
[351184825,1738399877187,-910.38,0.00018082,2]
[351184826,1738399877196,-500.0,0.00018082,2]
[351184827,1738399877206,-1273.65,0.00018082,2]
[351184828,1738399877215,-879.55,0.00018082,2]
[351184829,1738399877224,-601.78,0.00018082,2]
[351184830,1738399877233,-1015.54,0.00018082,2]
[351184831,1738399877242,-2958.79,0.00018082,2]
[351184832,1738399877251,-500.0,0.00018082,2]
[351184833,1738399877260,-761.06,0.00018082,2]
[351184834,1738399877270,-572.04,0.00018082,2]
[351184835,1738399877280,-500.0,0.00018082,2]
[351184836,1738399877289,-621.1,0.00018082,2]
[351184837,1738399877299,-3925.91,0.00018082,2]
[351184838,1738399877308,-2000.0,0.00018082,2]
[351184839,1738399877317,-6916.9903244,0.00018088,2]
[351184840,1738399877681,-150.0,0.00016101,2]
[351184841,1738399877692,-150.0,0.00016191,2]
[351184842,1738399877704,-500.0,0.00016438,2]
[351184843,1738399877714,-500.0,0.00016573,2]
[351184844,1738399877724,-500.0,0.00016575,2]
[351184845,1738399877734,-150.0,0.00016661,2]
[351184846,1738399877743,-500.0,0.00016712,2]
[351184847,1738399877753,-500.0,0.00016849,2]
[351184848,1738399877762,-150.0,0.00016852,2]
[351184849,1738399877773,-157.85459997,0.00016986,2]
[351184850,1738399878218,-500.0,0.00016438,2]
[351184851,1738399878227,-500.0,0.00016438,2]
[351184852,1738399878236,-582.75,0.00016438,2]
[351184853,1738399878247,-500.0,0.00016438,2]
[351184854,1738399878256,-500.0,0.00016572,2]
[351184855,1738399878265,-500.0,0.00016573,2]
[351184856,1738399878275,-500.0,0.00016575,2]
[351184857,1738399878284,-492.10615401,0.00016575,2]
[351184858,1738399878307,-7.89384599,0.00016575,2]
[351184859,1738399878316,-500.0,0.00016709,2]
[351184860,1738399878326,-500.0,0.0001671,2]
[351184861,1738399878335,-500.0,0.0001671,2]
[351184862,1738399878345,-500.0,0.00016712,2]
[351184863,1738399878354,-500.0,0.00016712,2]
[351184864,1738399878363,-500.0,0.00016846,2]
[351184865,1738399878372,-500.0,0.00016847,2]
[351184866,1738399878382,-500.0,0.00016847,2]
[351184867,1738399878392,-500.0,0.00016849,2]
[351184868,1738399878401,-500.0,0.00016849,2]
[351184869,1738399878410,-500.0,0.00016983,2]
[351184870,1738399878419,-545.98,0.00016984,2]
[351184871,1738399878428,-342.14540003,0.00016986,2]
[351184872,1738399878439,-500.0,0.00016986,2]
[351184873,1738399878449,-532.75,0.00016986,2]
[351184874,1738399878459,-500.0,0.0001712,2]
[351184875,1738399878469,-500.0,0.00017123,2]
[351184876,1738399878478,-500.0,0.00017123,2]
[351184877,1738399878487,-500.0,0.00017123,2]
[351184878,1738399878497,-150.0,0.00017148,2]
[351184879,1738399878508,-500.0,0.0001726,2]
[351184880,1738399878517,-599.82325408,0.0001726,2]
[351184881,1738399878527,-436.52,0.0001726,2]
[351184882,1738399878536,-500.0,0.00017397,2]
[351184883,1738399878550,-150.0,0.00017438,2]
[351184884,1738399878560,-150.0,0.00017455,2]
[351184885,1738399878569,-500.0,0.00017534,2]
[351184886,1738399878579,-150.0,0.00017588,2]
[351184887,1738399878588,-500.0,0.00017671,2]
[351184888,1738399878599,-150.0,0.0001779,2]
[351184889,1738399878608,-150.0,0.0001779,2]
[351184890,1738399878619,-500.0,0.00017808,2]
[351184891,1738399878628,-150.0,0.00017819,2]
[351184892,1738399878638,-150.0,0.00017866,2]
[351184893,1738399878648,-150.0,0.00017927,2]
[351184894,1738399878658,-151.0,0.00017943,2]
[351184895,1738399878668,-500.0,0.00017945,2]
[351184896,1738399878678,-150.0,0.00017992,2]
[351184897,1738399878689,-151.0,0.00018081,2]
[351184898,1738399878811,-500.0,0.00018082,2]
[351184899,1738399878820,-3131.7065774,0.00018088,2]
[351184900,1738399878831,-4200.7671907,0.00018088,2]
[351184901,1738399878840,-151.51873,0.00018088,2]
[351184902,1738399878850,-151.0,0.00018088,2]
[351184903,1738399878860,-1053.381215,0.00018088,2]
[351184904,1738399878869,-1053.381215,0.00018088,2]
[351184905,1738399878879,-985.9563556,0.00018088,2]
[351184906,1738399878888,-13194.18316258,0.00018097,2]
[351184907,1738399878898,-600.0,0.000181,2]
[351184908,1738399878907,-11999.98836696,0.000181,2]
[351184909,1738399878916,-1268.0,0.00018101,2]
[351184910,1738399878925,-2020.0,0.00018101,2]
[351184911,1738399878936,-151.075,0.00018101,2]
[351184912,1738399878945,-637.0,0.00018101,2]
[351184913,1738399878955,-568.778,0.00018101,2]
[351184914,1738399878964,-1866.0,0.00018101,2]
[351184915,1738399878974,-908.0,0.00018101,2]
[351184916,1738399878984,-1262.0,0.00018101,2]
[351184917,1738399878994,-782.0,0.00018101,2]
[351184918,1738399879003,-2950.0,0.00018101,2]
[351184919,1738399879013,-538.0,0.00018101,2]
[351184920,1738399879023,-150.0,0.00018101,2]
[351184921,1738399879032,-1005.0,0.00018101,2]
[351184922,1738399879041,-150.0,0.00018101,2]
[351184923,1738399879051,-3909.0,0.00018101,2]
[351184924,1738399879061,-1160.0,0.00018106,2]
[351184925,1738399879070,-382.10591967,0.0001811,2]
[351184926,1738399879080,-170.60113215,0.00018117,2]
[351184927,1738399879090,-192.50662371,0.00018117,2]
[351184928,1738399879099,-1359.5131341,0.00018119,2]
[351184929,1738399879109,-1160.0,0.00018134,2]
[351184930,1738399879119,-1160.0,0.00018161,2]
[351184931,1738399879128,-191.05295981,0.00018164,2]
[351184932,1738399879137,-1405.87757458,0.00018176,2]
[351184933,1738399879147,-212.0,0.0001818,2]
[351184934,1738399879156,-205.0,0.0001818,2]
[351184935,1738399879165,-206.0,0.0001818,2]
[351184936,1738399879175,-151.0,0.0001818,2]
[351184937,1738399879184,-151.0,0.0001818,2]
[351184938,1738399879193,-151.0,0.0001818,2]
[351184939,1738399879202,-151.0,0.0001818,2]
[351184940,1738399879210,-151.591232,0.0001818,2]
[351184941,1738399879220,-151.0,0.0001818,2]
[351184942,1738399879230,-1160.0,0.00018189,2]
[351184943,1738399879239,-382.10591967,0.00018192,2]
[351184944,1738399879249,-1160.0,0.00018216,2]
[351184945,1738399879258,-2076.17,0.00018216,2]
[351184946,1738399879268,-500.0,0.00018216,2]
[351184947,1738399879278,-627.0,0.00018216,2]
[351184948,1738399879287,-1370.4,0.00018216,2]
[351184949,1738399879296,-2146.42,0.00018216,2]
[351184950,1738399879305,-1850.47,0.00018216,2]
[351184951,1738399879315,-1660.38,0.00018216,2]
[351184952,1738399879324,-750.93,0.00018216,2]
[351184953,1738399879334,-574.44,0.00018216,2]
[351184954,1738399879344,-300.36351,0.00018216,2]
[351184955,1738399879353,-151.0,0.00018216,2]
[351184956,1738399879363,-151.0,0.00018216,2]
[351184957,1738399879374,-813.13,0.00018216,2]
[351184958,1738399879383,-300.36351,0.00018216,2]
[351184959,1738399879393,-248.406269,0.00018216,2]
[351184960,1738399879403,-875.01,0.00018216,2]
[351184961,1738399879413,-151.0,0.00018216,2]
[351184962,1738399879422,-270.645188,0.00018216,2]
[351184963,1738399879432,-270.645188,0.00018216,2]
[351184964,1738399879442,-691.33,0.00018216,2]
[351184965,1738399879451,-3841.69,0.00018216,2]
[351184966,1738399879460,-500.0,0.00018217,2]
[351184967,1738399879469,-597.53,0.00018217,2]
[351184968,1738399879478,-602.98,0.00018217,2]
[351184969,1738399879487,-294.34951752,0.00018217,2]
[351184970,1738399879497,-500.0,0.00018217,2]
[351184971,1738399879506,-500.0,0.00018217,2]
[351184972,1738399879516,-555.73406398,0.00018217,2]
[351184973,1738399879526,-643.59,0.00018217,2]
[351184974,1738399879535,-582.1,0.00018217,2]
[351184975,1738399879545,-678.42,0.00018217,2]
[351184976,1738399879554,-500.0,0.00018217,2]
[351184977,1738399879563,-500.0,0.00018217,2]
[351184978,1738399879572,-500.0,0.00018217,2]
[351184979,1738399879582,-500.0,0.00018217,2]
[351184980,1738399879591,-500.0,0.00018217,2]
[351184981,1738399879600,-662.8,0.00018217,2]
[351184982,1738399879610,-500.0,0.00018217,2]
[351184983,1738399879620,-525.12,0.00018217,2]
[351184984,1738399879630,-500.0,0.00018217,2]
[351184985,1738399879639,-548.04,0.00018217,2]
[351184986,1738399879648,-618.08,0.00018217,2]
[351184987,1738399879658,-602.13,0.00018217,2]
[351184988,1738399879667,-535.9,0.00018217,2]
[351184989,1738399879677,-553.2,0.00018217,2]
[351184990,1738399879686,-500.0,0.00018217,2]
[351184991,1738399879698,-500.0,0.00018217,2]
[351184992,1738399879707,-817.74,0.00018217,2]
[351184993,1738399879716,-631.93,0.00018217,2]
[351184994,1738399879725,-605.11,0.00018217,2]
[351184995,1738399879735,-963.48,0.00018217,2]
[351184996,1738399879745,-511.13,0.00018217,2]
[351184997,1738399879754,-942.08,0.00018217,2]
[351184998,1738399879764,-822.79,0.00018217,2]
[351184999,1738399879774,-823.23,0.00018217,2]
[351185000,1738399879783,-1026.47,0.00018217,2]
[351185001,1738399879792,-2708.74,0.00018217,2]
[351185002,1738399879802,-500.0,0.00018217,2]
[351185003,1738399879811,-1668.57,0.00018217,2]
[351185004,1738399879821,-500.0,0.00018217,2]
[351185005,1738399879830,-2362.46,0.00018217,2]
[351185006,1738399879840,-683.25,0.00018217,2]
[351185007,1738399879854,-2132.08,0.00018217,2]
[351185008,1738399879865,-743.46,0.00018217,2]